bitfinex/quotes_BTCUSD_20230403
["timestamp","ask_amount","ask_price","bid_price","bid_amount"]
[1680548712285,0.081967,28172.0,28171.0,0.64087291]
[1680548712518,0.041198,28172.0,28171.0,0.64087291]
[1680548712753,0.027,28172.0,28171.0,0.64087291]
[1680548713006,0.028395,28174.0,28171.0,0.84087291]
[1680548713243,0.028393,28176.0,28175.0,0.2]
[1680548713472,0.081807,28176.0,28175.0,0.00698761]
[1680548714251,0.108807,28176.0,28175.0,0.09018761]
[1680548714486,0.041196,28176.0,28175.0,0.09018761]
[1680548714716,0.014196,28177.0,28175.0,0.09018761]
[1680548714957,0.02839,28179.0,28175.0,0.09018761]
[1680548714958,0.014195,28178.0,28175.0,0.09018761]
[1680548715433,0.014195,28178.0,28177.0,0.2]
[1680548715671,0.014195,28178.0,28177.0,0.20018]
[1680548715903,0.014195,28178.0,28177.0,0.2]
[1680548716135,0.041195,28178.0,28177.0,0.2]
[1680548716379,0.014195,28178.0,28177.0,0.201]
[1680548716611,0.038195,28178.0,28177.0,0.201]
[1680548716857,0.040962,28178.0,28177.0,0.20018]
[1680548717098,0.024,28178.0,28177.0,0.201]
[1680548717335,0.0325,28178.0,28177.0,0.20118]
[1680548717566,0.046695,28178.0,28177.0,0.20118]
[1680548718034,0.0325,28178.0,28177.0,0.28508]
[1680548718508,0.024,28178.0,28177.0,0.7703327]
[1680548718797,0.028385,28184.0,28183.0,0.00698761]
[1680548719024,0.066927,28184.0,28183.0,0.00698761]
[1680548719250,0.081119,28184.0,28183.0,0.00698761]
[1680548719484,0.042577,28184.0,28183.0,0.00698761]
[1680548719716,0.083715,28184.0,28183.0,0.00698761]
[1680548720192,0.110715,28184.0,28183.0,0.00798761]
[1680548721168,0.083715,28184.0,28183.0,0.00698761]
[1680548721543,0.092215,28184.0,28183.0,0.00698761]
[1680548721788,0.075077,28184.0,28183.0,0.09158761]
[1680548724616,0.046692,28184.0,28183.0,0.09158761]
[1680548725072,0.087709,28184.0,28183.0,0.09158761]
[1680548725292,0.046692,28184.0,28183.0,0.09158761]
[1680548726924,0.046692,28184.0,28183.0,0.00798761]
[1680548727383,0.0962045,28184.0,28183.0,0.00798761]
[1680548729897,0.088697,28184.0,28183.0,0.00798761]
[1680548734577,0.088697,28184.0,28183.0,0.00789055]
[1680548735958,0.074505,28184.0,28183.0,0.00789055]
[1680548736407,0.088697,28184.0,28183.0,0.09149055]
[1680548736632,0.046692,28184.0,28183.0,0.09149055]
[1680548737124,0.0325,28184.0,28183.0,0.09149055]
[1680548737583,0.085749,28184.0,28183.0,0.09149055]
[1680548738047,0.046692,28184.0,28183.0,0.09149055]
[1680548738267,0.0325,28184.0,28183.0,0.09149055]
[1680548738740,0.046692,28184.0,28183.0,0.09149055]
[1680548740782,0.086806,28184.0,28183.0,0.09149055]
[1680548741005,0.086707,28184.0,28183.0,0.09149055]
[1680548741688,0.086707,28184.0,28183.0,0.00789055]
[1680548746075,0.084326,28184.0,28183.0,0.00789055]
[1680548747221,0.024,28184.0,28183.0,0.09149055]
[1680548747480,0.024,28184.0,28183.0,0.11024755]
[1680548747691,0.024,28184.0,28183.0,0.44149055]
[1680548747920,0.024,28184.0,28183.0,0.46084055]
[1680548748399,0.03729001,28189.0,28188.0,0.00689055]
[1680548748633,0.07513701,28189.0,28188.0,0.00689055]
[1680548749076,0.08363701,28189.0,28188.0,0.00689055]
[1680548749543,0.10863701,28189.0,28188.0,0.00789055]
[1680548750242,0.15735651,28189.0,28188.0,0.00789055]
[1680548750909,0.10863701,28189.0,28188.0,0.00789055]
[1680548753884,0.75010433,28189.0,28188.0,0.001]
[1680548754151,1.09992433,28189.0,28188.0,0.001]
[1680548754437,1.39992433,28189.0,28188.0,0.001]
[1680548754714,1.70180851,28189.0,28188.0,0.001]
[1680548755036,1.87982319,28189.0,28188.0,0.001]
[1680548756464,1.96466068,28189.0,28188.0,0.001]
[1680548758341,2.14466068,28189.0,28188.0,0.001]
[1680548758595,2.05982319,28189.0,28188.0,0.001]
[1680548758869,2.18707942,28189.0,28188.0,0.001]
[1680548759941,2.35675439,28189.0,28188.0,0.001]
[1680548760489,2.18707942,28189.0,28188.0,0.001]
[1680548760749,2.37693513,28189.0,28188.0,0.001]
[1680548760974,0.7253,28188.0,28185.0,0.00689055]
[1680548761200,0.80340305,28187.0,28185.0,0.00689055]
[1680548761431,0.038989,28186.0,28185.0,0.00689055]
[1680548761649,0.06168,28186.0,28185.0,0.00689055]
[1680548761873,0.41168,28186.0,28185.0,0.00689055]
[1680548762098,0.71168,28186.0,28185.0,0.00689055]
[1680548762325,0.94217714,28186.0,28185.0,0.00689055]
[1680548762822,1.02716668,28186.0,28185.0,0.00689055]
[1680548763080,1.05416668,28186.0,28185.0,0.00689055]
[1680548764777,1.18165099,28186.0,28185.0,0.00689055]
[1680548766391,1.18173391,28186.0,28185.0,0.00689055]
[1680548766640,0.95123677,28186.0,28185.0,0.00689055]
[1680548766898,0.86616431,28186.0,28185.0,0.00689055]
[1680548767149,6.06e-05,28185.0,28182.0,0.00689055]
[1680548767402,0.78544609,28184.0,28182.0,0.00689055]
[1680548767645,0.64297726,28183.0,28180.0,0.00689055]
[1680548767899,0.464213,28182.0,28180.0,0.00689055]
[1680548768153,0.68949,28181.0,28180.0,0.00689055]
[1680548768432,0.760458,28181.0,28180.0,0.00689055]
[1680548768707,0.95687579,28181.0,28180.0,0.00689055]
[1680548768984,1.04195288,28181.0,28180.0,0.00689055]
[1680548769524,1.44425288,28181.0,28180.0,0.00689055]
[1680548771379,1.33217579,28181.0,28180.0,0.00689055]
[1680548771619,1.35917579,28181.0,28180.0,0.00689055]
[1680548772134,0.821258,28181.0,28180.0,0.00689055]
[1680548772379,0.794258,28181.0,28180.0,0.00689055]
[1680548772614,0.821258,28181.0,28180.0,0.00689055]
[1680548773788,0.794258,28181.0,28180.0,0.00689055]
[1680548774030,0.821258,28181.0,28180.0,0.00689055]
[1680548774263,0.794258,28181.0,28180.0,0.00689055]
[1680548774487,0.821258,28181.0,28180.0,0.00689055]
[1680548774737,0.794258,28181.0,28180.0,0.00689055]
[1680548774965,0.821258,28181.0,28180.0,0.00689055]
[1680548775193,0.794258,28181.0,28180.0,0.00689055]
[1680548775719,0.821258,28181.0,28180.0,0.00689055]
[1680548776656,0.794258,28181.0,28180.0,0.00689055]
[1680548777362,0.821258,28181.0,28180.0,0.00689055]
[1680548777595,0.794258,28181.0,28180.0,0.00689055]
[1680548777833,0.821258,28181.0,28180.0,0.00689055]
[1680548778067,0.794258,28181.0,28180.0,0.00689055]
[1680548778305,0.99912623,28181.0,28180.0,0.00689055]
[1680548778560,0.97212623,28181.0,28180.0,0.00689055]
[1680548779225,0.794258,28181.0,28180.0,0.00689055]
[1680548779451,0.821258,28181.0,28180.0,0.00689055]
[1680548779907,0.905258,28181.0,28180.0,0.00689055]
[1680548780853,0.878258,28181.0,28180.0,0.00689055]
[1680548781080,1.058258,28181.0,28180.0,0.00689055]
[1680548781297,1.27684223,28181.0,28180.0,0.00689055]
[1680548781742,1.19284223,28181.0,28180.0,0.00689055]
[1680548782467,1.21984223,28181.0,28180.0,0.00689055]
[1680548782690,1.19284223,28181.0,28180.0,0.00689055]
[1680548782911,1.21984223,28181.0,28180.0,0.00689055]
[1680548784161,1.21984223,28181.0,28180.0,0.00678955]
[1680548787263,1.29514223,28181.0,28180.0,0.00678955]
[1680548787512,1.55436822,28181.0,28176.0,0.00678955]
[1680548787774,0.3753,28179.0,28176.0,0.00678955]
[1680548788012,0.3753,28177.0,28176.0,0.00678955]
[1680548788247,0.737397,28177.0,28176.0,0.00678955]
[1680548788465,0.8196718,28177.0,28176.0,0.00678955]
[1680548789393,0.8466718,28177.0,28176.0,0.00678955]
[1680548791756,0.389097,28177.0,28176.0,0.00678955]
[1680548791976,0.089097,28177.0,28176.0,0.00678955]
[1680548795092,0.389097,28177.0,28176.0,0.00678955]
[1680548795342,0.839597,28177.0,28173.0,0.00678955]
[1680548795570,0.35,28174.0,28173.0,0.00678955]
[1680548795799,0.5833453,28174.0,28173.0,0.00678955]
[1680548796024,0.8918453,28174.0,28173.0,0.00678955]
[1680548796494,0.5688453,28174.0,28167.0,0.0753]
[1680548796732,0.01420088,28171.0,28169.0,0.0751]
[1680548796958,0.063337,28170.0,28169.0,0.0751]
[1680548797204,0.022699,28170.0,28169.0,0.0751]
[1680548797437,0.022699,28170.0,28167.0,0.4256]
[1680548797438,0.022699,28170.0,28167.0,0.434]
[1680548797938,0.01420088,28171.0,28169.0,0.0836]
[1680548798167,0.01,28170.0,28168.0,0.0839]
[1680548798401,0.01420088,28171.0,28169.0,0.103211]
[1680548798636,0.01420088,28171.0,28170.0,0.102634]
[1680548798867,0.01420088,28171.0,28170.0,0.0838]
[1680548799346,0.01438088,28174.0,28170.0,0.0838]
[1680548799589,0.01438088,28174.0,28171.0,0.53579912]
[1680548799590,0.00012,28174.0,28171.0,0.53579912]
[1680548799835,0.01420088,28178.0,28173.0,0.1677]
[1680548799836,0.01438088,28178.0,28173.0,0.1677]
[1680548800068,0.01420088,28178.0,28177.0,0.084]
[1680548800347,0.02839588,28178.0,28177.0,0.084]
[1680548801275,0.03839588,28178.0,28177.0,0.084]
[1680548801506,0.08440427,28178.0,28174.0,0.084]
[1680548801756,0.18616908,28178.0,28173.0,0.084]
[1680548802207,0.0085,28177.0,28173.0,0.084]
[1680548802433,0.014196,28176.0,28173.0,0.084]
[1680548803132,0.0085,28175.0,28173.0,0.084]
[1680548803363,0.022697,28175.0,28173.0,0.084]
[1680548803588,0.0085,28175.0,28173.0,0.085]
[1680548803814,0.0085,28175.0,28173.0,0.084]
[1680548804038,0.022697,28175.0,28173.0,0.085]
[1680548804276,0.0085,28175.0,28173.0,0.084]
[1680548804501,0.0095,28175.0,28173.0,0.085]
[1680548804730,0.0085,28176.0,28173.0,0.084]
[1680548804952,0.01,28175.0,28173.0,0.084]
[1680548805890,0.01420088,28168.0,28163.0,0.12096]
[1680548806126,0.01420088,28164.0,28163.0,0.02106]
[1680548806360,0.01420088,28164.0,28163.0,0.021]
[1680548806361,0.15211488,28164.0,28163.0,0.021]
[1680548806592,0.16732637,28164.0,28163.0,0.021]
[1680548806831,0.30922318,28164.0,28163.0,0.021]
[1680548807064,0.17600637,28164.0,28163.0,0.021]
[1680548807756,0.20300637,28164.0,28163.0,0.021]
[1680548808404,0.57830637,28164.0,28163.0,0.021]
[1680548809367,0.87830637,28164.0,28163.0,0.021]
[1680548809598,1.22830637,28164.0,28163.0,0.021]
[1680548810509,1.22830637,28164.0,28154.0,0.3108148]
[1680548810510,0.7253,28163.0,28154.0,0.3108148]
[1680548810744,0.7253,28163.0,28159.0,1.7370055]
[1680548810745,0.099429,28161.0,28159.0,1.7370055]
[1680548810971,0.046358,28160.0,28159.0,1.7370055]
[1680548811203,0.060742,28160.0,28159.0,1.7370055]
[1680548812636,0.240742,28160.0,28159.0,1.7370055]
[1680548813110,0.244742,28160.0,28159.0,1.7370055]
[1680548813806,0.240742,28160.0,28159.0,1.7370055]
[1680548814039,0.244742,28160.0,28159.0,1.7370055]
[1680548814275,0.240742,28160.0,28159.0,1.7370055]
[1680548814558,1.09175831,28160.0,28159.0,1.7370055]
[1680548814793,0.74175831,28160.0,28159.0,1.7370055]
[1680548815255,0.76875831,28160.0,28159.0,1.7370055]
[1680548815493,0.74175831,28160.0,28159.0,1.7370055]
[1680548815717,0.76875831,28160.0,28159.0,1.7370055]
[1680548815942,0.74175831,28160.0,28159.0,1.7370055]
[1680548816176,0.643042,28160.0,28159.0,1.7370055]
[1680548816658,0.385225,28161.0,28159.0,1.7370055]
[1680548816865,0.385285,28161.0,28160.0,1.53634241]
[1680548817138,0.394707,28161.0,28160.0,1.55288728]
[1680548817401,0.787139,28161.0,28160.0,0.00018]
[1680548817643,0.468656,28161.0,28157.0,0.028405]
[1680548817909,0.2,28159.0,28157.0,0.028405]
[1680548818174,0.019805,28158.0,28157.0,0.028405]
[1680548818390,0.062421,28158.0,28157.0,0.028405]
[1680548818740,0.062421,28158.0,28157.0,0.030405]
[1680548818989,0.070921,28158.0,28157.0,0.028405]
[1680548819279,0.082921,28158.0,28157.0,0.030405]
[1680548820300,0.07807117,28158.0,28157.0,0.030405]
[1680548822646,0.25807117,28158.0,28157.0,0.030405]
[1680548823351,0.25807117,28158.0,28157.0,0.020405]
[1680548824506,0.07807117,28158.0,28157.0,0.020405]
[1680548825896,0.063116,28158.0,28157.0,0.020405]
[1680548826152,0.0525346,28158.0,28150.0,0.0591718]
[1680548826399,0.0525346,28158.0,28146.0,0.44259271]
[1680548826400,0.2,28153.0,28146.0,0.44259271]
[1680548826642,0.014209,28151.0,28146.0,0.1051]
[1680548826876,0.14189681,28150.0,28146.0,0.1051]
[1680548827091,0.15610681,28150.0,28146.0,0.1051]
[1680548827642,0.15610681,28150.0,28146.0,0.1061]
[1680548827869,0.15610681,28150.0,28146.0,0.1051]
[1680548827870,0.01421,28150.0,28146.0,0.1051]
[1680548828101,0.03392639,28150.0,28146.0,0.1061]
[1680548828333,0.03392739,28150.0,28146.0,0.1061]
[1680548828577,0.03192739,28150.0,28146.0,0.1051]
[1680548828823,0.03192739,28150.0,28146.0,0.1061]
[1680548828824,0.03392739,28150.0,28146.0,0.1061]
[1680548829046,0.03392739,28150.0,28146.0,0.1051]
[1680548829047,0.01421,28150.0,28146.0,0.1051]
[1680548829997,0.03392739,28150.0,28146.0,0.1061]
[1680548830254,0.01621,28150.0,28146.0,0.1061]
[1680548830502,0.01621,28150.0,28146.0,0.022]
[1680548830503,0.02331254,28150.0,28146.0,0.022]
[1680548831507,0.018471,28149.0,28146.0,0.022]
[1680548831747,0.01421,28148.0,28146.0,0.021]
[1680548832466,0.03560539,28147.0,28146.0,0.021]
[1680548832705,0.63129678,28147.0,28146.0,0.021]
[1680548832979,0.63129678,28147.0,28146.0,0.022]
[1680548832980,0.61684759,28147.0,28146.0,0.022]
[1680548833264,0.974879,28147.0,28146.0,0.021]
[1680548833550,0.98409639,28147.0,28146.0,0.021]
[1680548833823,1.01109639,28147.0,28146.0,0.021]
[1680548834091,1.1466062,28147.0,28146.0,0.021]
[1680548834307,1.32221502,28147.0,28146.0,0.021]
[1680548834546,1.29521502,28147.0,28146.0,0.021]
[1680548834781,1.32221502,28147.0,28146.0,0.021]
[1680548835734,1.29471502,28147.0,28146.0,0.021]
[1680548835954,1.32171502,28147.0,28146.0,0.021]
[1680548836196,1.29471502,28147.0,28146.0,0.021]
[1680548836425,1.32171502,28147.0,28146.0,0.021]
[1680548836656,1.30399763,28147.0,28146.0,0.021]
[1680548837377,1.14148782,28147.0,28146.0,0.021]
[1680548838102,1.16770521,28147.0,28146.0,0.021]
[1680548838640,0.2,28142.0,28134.0,0.0841]
[1680548838921,0.18453981,28141.0,28135.0,0.00018]
[1680548839210,0.14207681,28141.0,28136.0,0.35471056]
[1680548839495,0.15629081,28141.0,28137.0,0.39280256]
[1680548839971,0.014394,28141.0,28137.0,0.35471056]
[1680548840269,0.01769,28140.0,28134.0,0.06946]
[1680548840571,0.18454181,28139.0,28135.0,1.2790367]
[1680548840827,0.18472181,28139.0,28135.0,1.2790367]
[1680548841088,0.042825,28139.0,28135.0,1.2790367]
[1680548841381,0.042645,28139.0,28135.0,1.2790367]
[1680548841963,0.047645,28139.0,28135.0,1.2790367]
[1680548843076,0.019215,28139.0,28136.0,0.35]
[1680548843358,0.019215,28139.0,28134.0,0.7052571]
[1680548843629,0.019215,28139.0,28135.0,1.27901784]
[1680548844442,0.014215,28139.0,28135.0,1.27901784]
[1680548845017,0.15611181,28139.0,28135.0,1.27901784]
[1680548845481,0.15611181,28139.0,28133.0,0.3]
[1680548845482,0.01771739,28138.0,28133.0,0.00018]
[1680548845769,0.01771739,28138.0,28130.0,0.6264]
[1680548845770,0.014216,28137.0,28131.0,1.57908509]
[1680548846023,0.14189681,28136.0,28132.0,1.63379565]
[1680548846307,0.014216,28136.0,28133.0,1.27908509]
[1680548847759,0.005,28136.0,28133.0,1.10028947]
[1680548848050,0.014216,28137.0,28132.0,0.35471056]
[1680548848310,0.011,28136.0,28132.0,0.35471056]
[1680548848588,0.011,28136.0,28134.0,0.0842]
[1680548848955,0.014215,28138.0,28134.0,0.0842]
[1680548849453,0.00018,28140.0,28134.0,0.80051362]
[1680548849961,0.014394,28140.0,28134.0,0.80051362]
[1680548850251,0.15629081,28140.0,28134.0,0.43891056]
[1680548850841,0.01818,28140.0,28135.0,0.35471056]
[1680548851123,0.032394,28140.0,28135.0,0.35471056]
[1680548851849,0.014394,28140.0,28135.0,0.35471056]
[1680548851892,0.14189681,28139.0,28135.0,0.35471056]
[1680548852175,0.014215,28138.0,28135.0,0.35471056]
[1680548852667,0.014395,28138.0,28135.0,0.35471056]
[1680548852947,0.014215,28138.0,28135.0,0.35471056]
[1680548853505,0.014395,28138.0,28132.0,0.00018]
[1680548853510,0.039395,28138.0,28132.0,0.00018]
[1680548853824,0.18111181,28138.0,28133.0,0.35471056]
[1680548854086,0.039395,28138.0,28133.0,0.35471056]
[1680548854675,0.014395,28138.0,28133.0,0.35471056]
[1680548854956,0.014215,28138.0,28133.0,0.35471056]
[1680548855242,0.025215,28138.0,28133.0,0.35471056]
[1680548855516,0.025395,28138.0,28133.0,0.35471056]
[1680548856853,0.30904231,28137.0,28131.0,0.30018]
[1680548857130,0.15611381,28136.0,28131.0,0.35471056]
[1680548857392,0.15629381,28136.0,28131.0,0.35471056]
[1680548858702,0.014397,28136.0,28131.0,0.35471056]
[1680548859631,0.025397,28136.0,28128.0,0.25505715]
[1680548859973,0.14189681,28135.0,28129.0,0.35471056]
[1680548860527,0.15629381,28135.0,28129.0,0.35471056]
[1680548860710,0.15629381,28135.0,28129.0,0.42339715]
[1680548860712,0.15629381,28135.0,28129.0,0.33971056]
[1680548860988,0.15629381,28135.0,28128.0,0.29327217]
[1680548861256,0.15729381,28135.0,28128.0,0.65688204]
[1680548861539,0.15729381,28135.0,28129.0,0.040326]
[1680548861825,0.14307681,28135.0,28129.0,0.040326]
[1680548862081,0.15629381,28135.0,28129.0,0.39325719]
[1680548862364,0.18472781,28135.0,28130.0,0.040218]
[1680548862644,0.015397,28135.0,28130.0,0.040218]
[1680548862921,0.18183968,28134.0,28127.0,0.00018]
[1680548863198,0.14189681,28133.0,28128.0,0.35471056]
[1680548863477,0.14207681,28133.0,28128.0,0.35471056]
[1680548864309,0.00018,28133.0,28129.0,0.0842]
[1680548864972,0.20018,28134.0,28130.0,0.39757556]
[1680548865180,0.011,28133.0,28130.0,0.39757556]
[1680548865468,0.20018,28134.0,28130.0,0.39757556]
[1680548865470,0.20018,28134.0,28130.0,0.35471056]
[1680548865471,0.005,28133.0,28130.0,0.35471056]
[1680548865745,0.005,28133.0,28131.0,0.041226]
[1680548866040,0.20018,28134.0,28131.0,0.041226]
[1680548866333,0.011,28133.0,28131.0,0.041226]
[1680548866831,0.20018,28134.0,28131.0,0.041226]
[1680548866832,0.018,28133.0,28131.0,0.041226]
[1680548867122,0.018,28133.0,28131.0,0.03944817]
[1680548868183,0.018,28133.0,28132.0,1.27178032]
[1680548868446,0.018,28133.0,28132.0,1.31071832]
[1680548868727,0.018,28133.0,28131.0,0.00018]
[1680548869023,0.019383,28132.0,28126.0,0.703915]
[1680548869301,0.14189681,28131.0,28127.0,0.35471056]
[1680548869515,0.14189681,28131.0,28127.0,0.35489056]
[1680548869758,0.014219,28131.0,28127.0,0.35489056]
[1680548869994,0.055437,28133.0,28127.0,0.35489056]
[1680548870239,0.18311481,28133.0,28127.0,0.35489056]
[1680548870707,0.14189681,28133.0,28127.0,0.35489056]
[1680548870945,0.005,28131.0,28127.0,0.35489056]
[1680548871178,0.14189681,28133.0,28128.0,0.037363]
[1680548871418,0.14189681,28133.0,28128.0,0.39207356]
[1680548871419,0.011,28133.0,28128.0,0.39207356]
[1680548871666,0.297998,28134.0,28129.0,0.039251]
[1680548871945,0.005,28131.0,28129.0,0.039251]
[1680548872175,0.214398,28134.0,28129.0,0.039251]
[1680548872409,0.005,28133.0,28129.0,0.039251]
[1680548872633,0.214398,28134.0,28129.0,0.039251]
[1680548872868,0.20018,28134.0,28129.0,0.039251]
[1680548873093,0.214217,28134.0,28129.0,0.039251]
[1680548873324,0.214397,28134.0,28129.0,0.039251]
[1680548873549,0.214397,28134.0,28128.0,0.35471056]
[1680548873774,0.35611381,28134.0,28128.0,0.43839715]
[1680548874016,0.36729381,28134.0,28128.0,0.43839715]
[1680548874253,0.35307681,28134.0,28129.0,0.038869]
[1680548874494,0.20018,28134.0,28129.0,0.038869]
[1680548874722,0.211,28134.0,28129.0,0.038869]
[1680548874942,0.20018,28134.0,28129.0,0.038869]
[1680548875221,0.005,28134.0,28130.0,0.43881056]
[1680548875484,0.20018,28135.0,28131.0,0.055528]
[1680548875775,0.005,28134.0,28133.0,0.35]
[1680548876115,0.005,28134.0,28133.0,0.98978115]
[1680548876349,0.005,28134.0,28133.0,1.33978115]
[1680548876609,0.2,28138.0,28133.0,1.91434483]
[1680548876846,0.2,28138.0,28137.0,0.0835]
[1680548877100,0.2,28138.0,28137.0,0.47757456]
[1680548877366,0.2,28138.0,28137.0,0.49534456]
[1680548877600,0.2,28138.0,28137.0,0.47757456]
[1680548878050,0.2,28138.0,28137.0,0.47857456]
[1680548881663,0.2,28138.0,28137.0,0.39507456]
[1680548885856,0.19509,28138.0,28137.0,0.39525456]
[1680548886092,0.19509,28138.0,28137.0,0.39507456]
[1680548886535,0.19509,28138.0,28137.0,0.040364]
[1680548886764,0.19509,28138.0,28137.0,0.001]
[1680548887930,0.19509,28138.0,28137.0,1.28010338]
[1680548888155,0.18933218,28138.0,28137.0,1.31987138]
[1680548888603,0.18933218,28138.0,28137.0,1.28010338]
[1680548890190,0.18933218,28138.0,28137.0,0.001]
[1680548890425,0.18205785,28138.0,28137.0,0.001]
[1680548891323,0.20075385,28138.0,28137.0,0.001]
[1680548891783,0.18205785,28138.0,28137.0,0.001]
[1680548892031,0.18205785,28138.0,28135.0,0.08408497]
[1680548892524,0.18205785,28138.0,28136.0,1.27912396]
[1680548893084,0.18205785,28138.0,28135.0,0.08426497]
[1680548893335,0.18205785,28138.0,28134.0,0.20947055]
[1680548893336,0.19627285,28138.0,28134.0,0.20947055]
[1680548893604,0.18205785,28135.0,28134.0,0.08408497]
[1680548894620,0.18205785,28135.0,28134.0,0.08508497]
[1680548894852,0.18205785,28135.0,28134.0,0.08408497]
[1680548895075,0.18405785,28135.0,28134.0,0.08508497]
[1680548897419,0.00018,28137.0,28134.0,0.77288256]
[1680548897687,0.00018,28140.0,28136.0,0.16841989]
[1680548897970,0.18223785,28141.0,28137.0,0.70718833]
[1680548898233,0.18205785,28141.0,28138.0,0.039518]
[1680548898494,0.18205785,28141.0,28138.0,0.39422856]
[1680548898992,0.18205785,28141.0,28138.0,0.37247956]
[1680548898997,0.18205785,28141.0,28138.0,0.45670267]
[1680548899279,0.18205785,28141.0,28139.0,0.038998]
[1680548900283,0.18405785,28141.0,28139.0,0.038998]
[1680548900525,0.18205785,28141.0,28139.0,0.038998]
[1680548900733,0.18405785,28141.0,28139.0,0.054998]
[1680548900957,0.18405785,28141.0,28139.0,0.016]
[1680548901900,0.18405785,28141.0,28140.0,0.040731]
[1680548902134,0.18405785,28141.0,28139.0,0.016]
[1680548902389,0.18405785,28141.0,28140.0,0.039667]
[1680548902632,0.18405785,28141.0,28139.0,0.016]
[1680548902876,0.42803845,28141.0,28137.0,0.21073777]
[1680548903125,0.42803845,28141.0,28136.0,0.16841989]
[1680548903126,0.14189681,28140.0,28136.0,0.00018]
[1680548903369,0.15611081,28140.0,28135.0,0.38440311]
[1680548903598,0.18205785,28137.0,28135.0,0.00018]
[1680548903827,0.18205785,28137.0,28134.0,0.08422311]
[1680548903828,0.045072,28136.0,28134.0,0.00018]
[1680548904063,0.014216,28136.0,28134.0,0.00018]
[1680548904295,0.014216,28136.0,28133.0,0.08428311]
[1680548904537,0.19727385,28137.0,28135.0,0.001]
[1680548905017,0.031265,28136.0,28133.0,0.21073777]
[1680548905297,0.014216,28136.0,28133.0,0.21073777]
[1680548905552,0.18205785,28134.0,28132.0,0.21062897]
[1680548905804,0.18205785,28129.0,28128.0,0.028433]
[1680548906058,0.26625785,28129.0,28128.0,0.028433]
[1680548906594,0.26643785,28129.0,28128.0,0.028433]
[1680548907079,0.27443785,28129.0,28128.0,0.03970146]
[1680548908486,0.26643785,28129.0,28128.0,0.03970146]
[1680548908723,0.28143785,28129.0,28128.0,0.03970146]
[1680548909222,0.28143785,28129.0,28128.0,0.028433]
[1680548909452,0.28125785,28129.0,28128.0,0.02798995]
[1680548910401,0.26625785,28129.0,28128.0,0.02798995]
[1680548911342,0.18205785,28129.0,28128.0,0.02798995]
[1680548911843,0.20305785,28129.0,28128.0,0.02798995]
[1680548912082,0.18205785,28129.0,28128.0,0.02798995]
[1680548912309,0.19705785,28129.0,28128.0,0.06578894]
[1680548912547,0.18205785,28129.0,28128.0,0.02798995]
[1680548912781,0.19005785,28129.0,28128.0,0.02798995]
[1680548913007,0.18205785,28129.0,28128.0,0.02798995]
[1680548913231,0.19705785,28129.0,28128.0,0.02798995]
[1680548913466,0.18205785,28129.0,28128.0,0.02798995]
[1680548913690,0.20305785,28129.0,28128.0,0.02798995]
[1680548915167,0.20305785,28129.0,28128.0,0.38270051]
[1680548915410,0.20305785,28129.0,28128.0,0.46023504]
[1680548915637,0.20305785,28129.0,28128.0,0.38270051]
[1680548916583,0.20305785,28129.0,28128.0,0.38288051]
[1680548917054,0.20305785,28129.0,28128.0,0.02816995]
[1680548917305,0.20305785,28129.0,28128.0,0.02798995]
[1680548917783,0.20305785,28129.0,28126.0,0.00018]
[1680548918019,0.20305785,28129.0,28127.0,0.39225856]
[1680548918303,0.20305785,28129.0,28128.0,0.027701]
[1680548918553,0.18205785,28129.0,28127.0,0.74243856]
[1680548918786,0.19005785,28129.0,28127.0,0.39243856]
[1680548919026,0.18205785,28129.0,28127.0,0.35489056]
[1680548919262,0.20305785,28129.0,28127.0,0.35489056]
[1680548919485,0.18205785,28129.0,28127.0,0.35489056]
[1680548919729,0.19705785,28129.0,28127.0,0.35489056]
[1680548922587,0.029506,28128.0,28127.0,0.35489056]
[1680548923055,0.029506,28128.0,28127.0,0.42790962]
[1680548923796,0.044506,28128.0,28127.0,0.42790962]
[1680548924484,0.044506,28128.0,28127.0,0.35489056]
[1680548924979,0.044506,28128.0,28127.0,0.00018]
[1680548925209,0.044506,28128.0,28123.0,1.57977269]
[1680548925435,0.044506,28128.0,28125.0,0.35]
[1680548925436,0.15689681,28128.0,28125.0,0.35]
[1680548925666,0.02922,28128.0,28125.0,0.00018]
[1680548926418,0.015,28128.0,28123.0,1.27978699]
[1680548926419,0.19627785,28129.0,28123.0,1.27978699]
[1680548926647,0.001,28128.0,28124.0,0.51640386]
[1680548926887,0.33817466,28129.0,28124.0,0.16658386]
[1680548927133,0.3,28128.0,28124.0,0.00018]
[1680548927365,0.002,28128.0,28124.0,0.00018]
[1680548927605,0.19627785,28129.0,28124.0,1.2796031]
[1680548927837,0.01522,28128.0,28124.0,0.00118]
[1680548928068,0.01522,28128.0,28124.0,0.001]
[1680548928327,0.01522,28128.0,28125.0,1.27960397]
[1680548928560,0.18205785,28126.0,28125.0,1.27960397]
[1680548928801,0.18205785,28126.0,28125.0,1.27978397]
[1680548929271,0.18205785,28126.0,28125.0,0.00018]
[1680548929498,0.18205785,28126.0,28125.0,1.27960397]
[1680548929731,0.18405785,28126.0,28125.0,1.27978397]
[1680548929988,0.18405785,28126.0,28125.0,0.00018]
[1680548930276,0.18405785,28126.0,28124.0,1.27978397]
[1680548930557,0.18399566,28126.0,28124.0,1.27972397]
[1680548930786,0.18399566,28126.0,28124.0,1.27978397]
[1680548931015,0.19621666,28126.0,28124.0,1.27978397]
[1680548931282,0.18199566,28126.0,28124.0,1.27978397]
[1680548931510,0.19621666,28126.0,28124.0,1.27978397]
[1680548931743,0.18199566,28126.0,28125.0,1.00502925]
[1680548931974,0.18199566,28126.0,28125.0,2.39627822]
[1680548932205,0.18299566,28126.0,28125.0,2.12125953]
[1680548932673,0.18199566,28126.0,28125.0,2.00979453]
[1680548932901,0.18199566,28126.0,28125.0,2.03633153]
[1680548933131,0.18399566,28126.0,28125.0,1.63449453]
[1680548933620,0.18399566,28126.0,28125.0,1.27978397]
[1680548933854,0.18199566,28126.0,28125.0,1.27978397]
[1680548934080,0.18399566,28126.0,28125.0,0.00118]
[1680548934322,0.002,28126.0,28125.0,1.86434809]
[1680548934557,0.002,28126.0,28125.0,2.59089161]
[1680548934787,0.002,28126.0,28125.0,3.18266161]